[Event "FIDE World Cup O10-B 2024"]
[Site "Batumi"]
[Date "2024.06.28"]
[Round "6.6"]
[White "Akramov, Khasan"]
[Black "Muhammad Shayan Noushad Ibrahi"]
[Result "1-0"]
[ECO "A23"]
[WhiteElo "1718"]
[BlackElo "1785"]
[Annotator "NA RC"]
[PlyCount "125"]
[EventDate "2024.06.23"]
[EventType "swiss"]
[EventCountry "GEO"]
[SourceTitle "playchess.com"]
[Source "ChessBase"]
[SourceQuality "1"]
[TimeControl "5400+30"]

1. c4 {[%emt 0:00:02]} e5 {[%emt 0:01:19]} 2. g3 {[%emt 0:00:03]} Nf6 {[%emt 0:01:29]} 3. Bg2 {[%emt 0:00:06]} c6 {[%emt 0:01:33]} 4. Nf3 {[%emt 0:00:07]} e4 {[%emt 0:03:39]} 5. Nd4 {[%emt 0:00:13]} d5 {[%emt 0:03:18]} 6. cxd5 {[%emt 0:01:42]} cxd5 {[%emt 0:02:29]} 7. O-O {[%emt 0:00:33]} Nc6 {[%emt 0:01:31]} 8. Nxc6 {[%emt 0:00:43]} bxc6 {[%emt 0:01:26]} 9. d3 {[%emt 0:00:22]} exd3 {[%emt 0:01:45]} 10. Qxd3 {[%emt 0:00:38]} Be7 {[%emt 0:01:19]} 11. Nc3 {[%emt 0:00:48]} Be6 {[%emt 0:01:25]} 12. b3 {[%emt 0:04:54]} O-O {[%emt 0:03:32]} 13. Bb2 {[%emt 0:00:07]} Rc8 {[%emt 0:02:42]} 14. Rac1 {[%emt 0:06:16]} c5 {[%emt 0:11:02]} 15. Rfd1 {[%emt 0:12:38]} d4 {[%emt 0:03:22]} 16. Ne4 {[%emt 0:05:09]} Qa5 {[%emt 0:01:34]} 17. a3 {[%emt 0:07:38]} Rfd8 {[%emt 0:07:33]} 18. Nd2 {[%emt 0:04:48]} Rb8 {[%emt 0:03:52]} 19. Nc4 {[%emt 0:01:52]} Qb5 {[%emt 0:01:11]} 20. Ne5 {[%emt 0:04:22]} Qxb3 {[%emt 0:06:38]} 21. Nc6 {[%emt 0:03:28]} Qxd3 {[%emt 0:00:30]} 22. exd3 {[%emt 0:00:46]} Rxb2 {[%emt 0:00:44]} 23. Nxe7+ {[%emt 0:00:03]} Kf8 {[%emt 0:00:37]} 24. Nc6 {[%emt 0:00:42]} Rc8 {[%emt 0:00:39]} 25. Rxc5 {[%emt 0:00:48]} Ng4 {[%emt 0:00:17]} 26. Rf1 {[%emt 0:08:24]} Rb3 {[%emt 0:02:10]} 27. Ra5 {[%emt 0:10:54]} Rxd3 {[%emt 0:00:47]} 28. Rxa7 {[%emt 0:00:08]} Bc4 {[%emt 0:01:25]} 29. Re1 {[%emt 0:13:11]} Rd2 {[%emt 0:01:01]} 30. Ra4 {[%emt 0:00:25]} Be6 {[%emt 0:03:37]} 31. Rxd4 {[%emt 0:05:34]} Ra2 {[%emt 0:00:30]} 32. Nd8 {[%emt 0:05:46]} Nf6 {[%emt 0:01:28]} 33. Nxe6+ {[%emt 0:00:24]} fxe6 {[%emt 0:00:06]} 34. a4 {[%emt 0:00:40]} Rcc2 {[%emt 0:00:10]} 35. Rf4 {[%emt 0:01:38]} Kf7 {[%emt 0:01:32]} 36. h4 {[%emt 0:00:57]} h6 {[%emt 0:01:09]} 37. Bh3 {[%emt 0:00:51]} Rc6 {[%emt 0:00:22]} 38. Rb4 {[%emt 0:00:31]} Nd5 {[%emt 0:00:08]} 39. Rbe4 {[%emt 0:00:13]} Nc7 {[%emt 0:00:22]} 40. Bg2 {[%emt 0:00:27]} Ra6 {[%emt 0:00:24]} 41. Rc4 {[%emt 0:00:58]} Ne8 {[%emt 0:00:22]} 42. Rf4+ {[%emt 0:00:42]} Nf6 {[%emt 0:00:15]} 43. Bh3 {[%emt 0:00:24]} Ke7 {[%emt 0:01:19]} 44. Rb4 {[%emt 0:00:28]} Nd5 {[%emt 0:00:12]} 45. Rbe4 {[%emt 0:00:28]} Nc7 {[%emt 0:00:09]} 46. Rc4 {[%emt 0:00:23]} Nd5 {[%emt 0:00:52]} 47. Bg2 {[%emt 0:00:15]} Nb6 {[%emt 0:00:41]} 48. Rc6 {[%emt 0:00:23]} R2xa4 {[%emt 0:02:25]} 49. Rexe6+ {[%emt 0:00:11]} Kf7 {[%emt 0:00:28]} 50. Rxb6 {[%emt 0:00:10]} Rxb6 {[%emt 0:00:15]} 51. Rxb6 {[%emt 0:00:05]} Ra1+ {[%emt 0:00:31]} 52. Kh2 {[%emt 0:00:47]} Kg8 {[%emt 0:00:42]} 53. Rb7 {[%emt 0:00:34]} Re1 {[%emt 0:01:05]} 54. Bd5+ {[%emt 0:00:15]} Kh7 {[%emt 0:00:19]} 55. h5 {[%emt 0:00:13]} Re5 {[%emt 0:00:22]} 56. Bf7 {[%emt 0:00:06]} g5 {[%emt 0:01:06]} 57. hxg6+ {[%emt 0:00:33]} Kg7 {[%emt 0:00:12]} 58. f4 {[%emt 0:00:31]} Ra5 {[%emt 0:00:33]} 59. g4 {[%emt 0:00:10]} h5 {[%emt 0:00:08]} 60. g5 {[%emt 0:00:13]} h4 {[%emt 0:00:15]} 61. f5 {[%emt 0:00:05]} Ra8 {[%emt 0:00:53]} 62. Bd5+ {[%emt 0:00:08]} Kh8 {[%emt 0:00:43]} 63. Rh7# {[%emt 0:00:05]} 1-0

[Event "FIDE World Cup O10-B 2024"]
[Site "Batumi"]
[Date "2024.06.28"]
[Round "6.8"]
[White "Kazimzade, Mahammad"]
[Black "Bergmann, Rafael Antonio"]
[Result "1/2-1/2"]
[ECO "C54"]
[WhiteElo "1594"]
[BlackElo "1743"]
[Annotator "NA RC"]
[PlyCount "94"]
[EventDate "2024.06.23"]
[EventType "swiss"]
[EventCountry "GEO"]
[SourceTitle "playchess.com"]
[Source "ChessBase"]
[SourceQuality "1"]
[TimeControl "5400+30"]

1. e4 {[%emt 0:00:05]} e5 {[%emt 0:00:03]} 2. Nf3 {[%emt 0:00:04]} Nc6 {[%emt 0:00:05]} 3. d4 {[%emt 0:00:03]} exd4 {[%emt 0:00:07]} 4. Bc4 {[%emt 0:00:04]} Bc5 {[%emt 0:00:08]} 5. c3 {[%emt 0:00:05]} Nf6 {[%emt 0:00:05]} 6. e5 {[%emt 0:00:10]} d5 {[%emt 0:00:05]} 7. Bb5 {[%emt 0:00:11]} Ne4 {[%emt 0:00:06]} 8. cxd4 {[%emt 0:00:08]} Bb6 {[%emt 0:00:05]} 9. Nc3 {[%emt 0:00:23]} O-O {[%emt 0:00:09]} 10. O-O {[%emt 0:01:08]} Bg4 {[%emt 0:01:00]} 11. Bxc6 {[%emt 0:04:00]} bxc6 {[%emt 0:00:08]} 12. Bf4 {[%emt 0:15:19]} Bxf3 {[%emt 0:00:39]} 13. Qxf3 {[%emt 0:00:06]} Bxd4 {[%emt 0:01:57]} 14. Nxe4 {[%emt 0:00:05]} dxe4 {[%emt 0:00:10]} 15. Qxe4 {[%emt 0:00:04]} Qd5 {[%emt 0:02:01]} 16. Qe2 {[%emt 0:05:35]} Rab8 {[%emt 0:03:09]} 17. Bc1 {[%emt 0:11:10]} Qxe5 {[%emt 0:01:38]} 18. Qxe5 {[%emt 0:01:06]} Bxe5 {[%emt 0:00:09]} 19. Rb1 {[%emt 0:00:01]} Rfe8 {[%emt 0:00:15]} 20. b3 {[%emt 0:00:49]} Bd4 {[%emt 0:01:18]} 21. Bf4 {[%emt 0:00:43]} Re2 {[%emt 0:00:55]} 22. a4 {[%emt 0:00:27]} Rbe8 {[%emt 0:00:31]} 23. Bxc7 {[%emt 0:00:42]} Rd2 {[%emt 0:00:14]} 24. Bf4 {[%emt 0:00:55]} Rc2 {[%emt 0:00:17]} 25. Rbd1 {[%emt 0:00:52]} Bb6 {[%emt 0:00:12]} 26. Bg3 {[%emt 0:02:25]} h6 {[%emt 0:01:17]} 27. Rd3 {[%emt 0:01:52]} Ree2 {[%emt 0:00:22]} 28. h3 {[%emt 0:00:43]} g5 {[%emt 0:03:03]} 29. Rf3 {[%emt 0:02:08]} Kg7 {[%emt 0:00:23]} 30. Rd1 {[%emt 0:00:59]} Kg8 {[%emt 0:01:25]} 31. Rd7 {[%emt 0:00:22]} Re1+ {[%emt 0:00:31]} 32. Kh2 {[%emt 0:00:07]} Rcc1 {[%emt 0:00:04]} 33. Bd6 {[%emt 0:00:19]} Rcd1 {[%emt 0:06:07]} 34. Rf6 {[%emt 0:00:18]} Re6 {[%emt 0:04:36]} 35. Rxe6 {[%emt 0:09:48]} fxe6 {[%emt 0:00:05]} 36. g3 {[%emt 0:00:19]} Bc5 {[%emt 0:02:12]} 37. Rd8+ {[%emt 0:00:21]} Kh7 {[%emt 0:00:08]} 38. Be7 {[%emt 0:01:44]} Rxd8 {[%emt 0:01:42]} 39. Bxd8 {[%emt 0:00:07]} Bxf2 {[%emt 0:00:10]} 40. Kg2 {[%emt 0:00:05]} Bc5 {[%emt 0:00:16]} 41. Kf3 {[%emt 0:00:16]} Kg6 {[%emt 0:00:53]} 42. g4 {[%emt 0:00:47]} Kf7 {[%emt 0:00:28]} 43. Ke4 {[%emt 0:00:07]} Bd6 {[%emt 0:00:06]} 44. Ba5 {[%emt 0:00:41]} Ke7 {[%emt 0:00:16]} 45. Bc3 {[%emt 0:00:04]} Kf7 {[%emt 0:02:13]} 46. Bb2 {[%emt 0:00:49]} c5 {[%emt 0:02:15]} 47. Bc3 {[%emt 0:00:13]} a6 {[%emt 0:01:32]} 1/2-1/2

[Event "FIDE World Cup O10-B 2024"]
[Site "Batumi"]
[Date "2024.06.28"]
[Round "6.9"]
[White "Shen, Houlin"]
[Black "Jibladze, Nikoloz"]
[Result "1-0"]
[ECO "E70"]
[WhiteElo "1583"]
[BlackElo "1612"]
[Annotator "NA RC"]
[PlyCount "65"]
[EventDate "2024.06.23"]
[EventType "swiss"]
[EventCountry "GEO"]
[SourceTitle "playchess.com"]
[Source "ChessBase"]
[SourceQuality "1"]
[TimeControl "5400+30"]

1. d4 {[%emt 0:00:02]} Nf6 {[%emt 0:01:00]} 2. c4 {[%emt 0:01:21]} g6 {[%emt 0:01:08]} 3. Nc3 {[%emt 0:00:52]} Bg7 {[%emt 0:02:28]} 4. e4 {[%emt 0:01:08]} d6 {[%emt 0:01:01]} 5. Bd3 {[%emt 0:02:33]} Nc6 {[%emt 0:05:23]} 6. Nge2 {[%emt 1:27:34]} e5 {[%emt 0:01:15]} 7. d5 {[%emt 0:00:00]} Ne7 {[%emt 0:01:42]} 8. f3 {[%emt 0:00:00]} Nd7 {[%emt 0:12:48]} 9. Be3 {[%emt 0:00:00]} b6 {[%emt 0:08:35]} 10. Qd2 {[%emt 0:00:00]} h5 {[%emt 0:10:13]} 11. Bc2 {[%emt 0:00:00]} a5 {[%emt 0:11:00]} 12. Nb5 {[%emt 0:00:00]} Nc5 {[%emt 0:03:29]} 13. Nec3 {[%emt 0:00:00]} Ng8 {[%emt 0:08:09]} 14. Na4 {[%emt 0:00:00]} Nxa4 {[%emt 0:02:48]} 15. Bxa4 {[%emt 0:00:00]} Kf8 {[%emt 0:01:30]} 16. Qc3 {[%emt 0:00:00]} Bd7 {[%emt 0:10:44]} 17. O-O-O {[%emt 0:00:00]} Bxb5 {[%emt 0:15:47]} 18. Bxb5 {[%emt 0:00:00]} f5 {[%emt 0:00:00]} 19. Qd3 {[%emt 0:00:00]} f4 {[%emt 0:00:00]} 20. Bd2 {[%emt 0:00:00]} Ne7 {[%emt 0:00:00]} 21. g3 {[%emt 0:00:00]} g5 {[%emt 0:00:00]} 22. h4 {[%emt 0:00:00]} fxg3 {[%emt 0:00:00]} 23. Bxg5 {[%emt 0:00:00]} Bh6 {[%emt 0:00:00]} 24. Qe3 {[%emt 0:00:00]} Ng8 {[%emt 0:00:00]} 25. f4 {[%emt 0:02:37]} exf4 {[%emt 0:00:20]} 26. Qxf4+ {[%emt 0:02:16]} Qf6 {[%emt 0:00:54]} 27. Qxg3 {[%emt 0:01:37]} Bxg5+ {[%emt 0:00:57]} 28. hxg5 {[%emt 0:00:51]} Qg6 {[%emt 0:00:55]} 29. e5 {[%emt 0:00:53]} dxe5 {[%emt 0:01:50]} 30. Rhf1+ {[%emt 0:01:07]} Kg7 {[%emt 0:01:00]} 31. Qxe5+ {[%emt 0:03:09]} Kh7 {[%emt 0:00:18]} 32. Qxc7+ {[%emt 0:00:00]} Qg7 {[%emt 0:00:41]} 33. Rf7 {[%emt 0:00:00]} 1-0

[Event "FIDE World Cup O10-B 2024"]
[Site "Batumi"]
[Date "2024.06.28"]
[Round "6.10"]
[White "Azimov, Yasin"]
[Black "Kiringoda, Thehas Rithmitha"]
[Result "1-0"]
[ECO "E00"]
[WhiteElo "1833"]
[BlackElo "1641"]
[Annotator "NA RC"]
[PlyCount "77"]
[EventDate "2024.06.23"]
[EventType "swiss"]
[EventCountry "GEO"]
[SourceTitle "playchess.com"]
[Source "ChessBase"]
[SourceQuality "1"]
[TimeControl "5400+30"]

1. d4 {[%emt 0:00:08]} d5 {[%emt 0:00:30]} 2. c4 {[%emt 0:00:16]} e6 {[%emt 0:00:09]} 3. g3 {[%emt 0:00:09]} Nf6 {[%emt 0:00:14]} 4. Bg2 {[%emt 0:01:14]} Bb4+ {[%emt 0:00:57]} 5. Nd2 {[%emt 0:00:25]} c6 {[%emt 0:00:23]} 6. Qc2 {[%emt 0:00:56]} O-O {[%emt 0:01:18]} 7. Ngf3 {[%emt 0:00:46]} Ne4 {[%emt 0:02:04]} 8. O-O {[%emt 0:01:05]} Bxd2 {[%emt 0:00:45]} 9. Nxd2 {[%emt 0:08:50]} f5 {[%emt 0:01:36]} 10. Nxe4 {[%emt 0:02:54]} fxe4 {[%emt 0:00:14]} 11. f3 {[%emt 0:01:01]} exf3 {[%emt 0:00:53]} 12. Bxf3 {[%emt 0:04:08]} Nd7 {[%emt 0:03:02]} 13. Bf4 {[%emt 0:09:46]} Nf6 {[%emt 0:00:45]} 14. c5 {[%emt 0:06:04]} b6 {[%emt 0:05:00]} 15. Bd6 {[%emt 0:02:00]} Re8 {[%emt 0:00:08]} 16. e4 {[%emt 0:02:11]} Ba6 {[%emt 0:02:00]} 17. Rf2 {[%emt 0:01:01]} dxe4 {[%emt 0:00:42]} 18. Bxe4 {[%emt 0:00:12]} Nxe4 {[%emt 0:00:11]} 19. Qxe4 {[%emt 0:00:08]} Qd7 {[%emt 0:00:08]} 20. Qe5 {[%emt 0:02:28]} Bc4 {[%emt 0:00:32]} 21. b3 {[%emt 0:02:01]} Bd5 {[%emt 0:00:50]} 22. Raf1 {[%emt 0:00:20]} bxc5 {[%emt 0:00:46]} 23. dxc5 {[%emt 0:00:10]} a6 {[%emt 0:01:18]} 24. h4 {[%emt 0:00:44]} a5 {[%emt 0:00:40]} 25. h5 {[%emt 0:00:14]} h6 {[%emt 0:00:36]} 26. g4 {[%emt 0:10:23]} a4 {[%emt 0:01:49]} 27. g5 {[%emt 0:01:48]} Qd8 {[%emt 0:03:52]} 28. gxh6 {[%emt 0:01:03]} gxh6 {[%emt 0:00:37]} 29. Rf6 {[%emt 0:00:33]} Ra7 {[%emt 0:00:50]} 30. Rg6+ {[%emt 0:00:52]} Kh7 {[%emt 0:00:15]} 31. Qe3 {[%emt 0:01:53]} Qg5+ {[%emt 0:01:24]} 32. Rxg5 {[%emt 0:00:10]} hxg5 {[%emt 0:00:07]} 33. Qd3+ {[%emt 0:00:09]} Kg8 {[%emt 0:00:18]} 34. Qg6+ {[%emt 0:00:09]} Rg7 {[%emt 0:00:22]} 35. Qxe8+ {[%emt 0:00:08]} Kh7 {[%emt 0:00:06]} 36. Rf8 {[%emt 0:00:17]} Rg8 {[%emt 0:00:29]} 37. Rxg8 {[%emt 0:00:10]} Be4 {[%emt 0:00:31]} 38. Qf7+ {[%emt 0:00:11]} Kh6 {[%emt 0:01:28]} 39. Bf8# {[%emt 0:00:08]} 1-0

[Event "FIDE World Cup O10-B 2024"]
[Site "Batumi"]
[Date "2024.06.28"]
[Round "6.11"]
[White "Kvaratskhelia, Giorgi"]
[Black "Akramov, Khusan"]
[Result "1-0"]
[ECO "B23"]
[WhiteElo "1548"]
[BlackElo "1477"]
[Annotator "NA RC"]
[PlyCount "55"]
[EventDate "2024.06.23"]
[EventType "swiss"]
[EventCountry "GEO"]
[SourceTitle "playchess.com"]
[Source "ChessBase"]
[SourceQuality "1"]
[TimeControl "5400+30"]

1. e4 {[%emt 0:00:01]} c5 {[%emt 0:00:03]} 2. Nc3 {[%emt 0:00:04]} g6 {[%emt 0:00:04]} 3. f4 {[%emt 0:00:09]} Bg7 {[%emt 0:00:02]} 4. Nf3 {[%emt 0:00:06]} Nc6 {[%emt 0:00:04]} 5. Bc4 {[%emt 0:00:25]} d6 {[%emt 0:00:03]} 6. d3 {[%emt 0:00:08]} e6 {[%emt 0:00:03]} 7. O-O {[%emt 0:00:16]} Nge7 {[%emt 0:00:05]} 8. Qe1 {[%emt 0:00:24]} O-O {[%emt 0:00:11]} 9. Qh4 {[%emt 0:00:32]} a6 {[%emt 0:01:09]} 10. f5 {[%emt 0:03:29]} exf5 {[%emt 0:02:31]} 11. Bh6 {[%emt 0:00:23]} b5 {[%emt 0:44:33]} 12. Bb3 {[%emt 0:09:07]} c4 {[%emt 0:00:28]} 13. dxc4 {[%emt 0:00:17]} bxc4 {[%emt 0:00:20]} 14. Bxc4 {[%emt 0:00:09]} Qb6+ {[%emt 0:03:27]} 15. Kh1 {[%emt 0:00:10]} Qxb2 {[%emt 0:00:13]} 16. Nd5 {[%emt 0:01:16]} Nxd5 {[%emt 0:37:09]} 17. Bxd5 {[%emt 0:00:54]} Bd7 {[%emt 0:02:40]} 18. exf5 {[%emt 0:05:15]} gxf5 {[%emt 0:02:05]} 19. Qg3 {[%emt 0:06:50]} Qf6 {[%emt 0:00:40]} 20. Bxg7 {[%emt 0:00:22]} Qxg7 {[%emt 0:01:34]} 21. Qxd6 {[%emt 0:00:12]} Rac8 {[%emt 0:00:20]} 22. Qxd7 {[%emt 0:00:14]} Rfd8 {[%emt 0:00:08]} 23. Qb7 {[%emt 0:00:48]} Na5 {[%emt 0:03:01]} 24. Qxa6 {[%emt 0:00:10]} Rxc2 {[%emt 0:00:13]} 25. Ne1 {[%emt 0:00:37]} Rd2 {[%emt 0:00:51]} 26. Nd3 {[%emt 0:04:13]} Nc4 {[%emt 0:01:02]} 27. Qxc4 {[%emt 0:00:18]} Re8 {[%emt 0:00:29]} 28. Rae1 {[%emt 0:00:47]} 1-0

[Event "FIDE World Cup O10-B 2024"]
[Site "Batumi"]
[Date "2024.06.28"]
[Round "6.12"]
[White "Popov, Aleksandr And"]
[Black "Makhsatuly, Rakhim"]
[Result "0-1"]
[ECO "B58"]
[WhiteElo "1661"]
[BlackElo "1630"]
[Annotator "NA RC"]
[PlyCount "190"]
[EventDate "2024.06.23"]
[EventType "swiss"]
[EventCountry "GEO"]
[SourceTitle "playchess.com"]
[Source "ChessBase"]
[SourceQuality "1"]
[TimeControl "5400+30"]

1. e4 {[%emt 0:00:02]} c5 {[%emt 0:00:02]} 2. Nf3 {[%emt 0:00:09]} Nc6 {[%emt 0:00:07]} 3. d4 {[%emt 0:00:12]} cxd4 {[%emt 0:00:04]} 4. Nxd4 {[%emt 0:00:08]} Nf6 {[%emt 0:00:02]} 5. Nc3 {[%emt 0:00:17]} d6 {[%emt 0:00:24]} 6. Be2 {[%emt 0:02:16]} e5 {[%emt 0:00:18]} 7. Nf3 {[%emt 0:05:02]} h6 {[%emt 0:00:37]} 8. h3 {[%emt 0:02:16]} Be6 {[%emt 0:00:14]} 9. Be3 {[%emt 0:05:34]} Be7 {[%emt 0:00:26]} 10. Qd2 {[%emt 0:01:29]} d5 {[%emt 0:00:07]} 11. exd5 {[%emt 0:04:38]} Nxd5 {[%emt 0:00:01]} 12. Nxd5 {[%emt 0:02:12]} Qxd5 {[%emt 0:00:01]} 13. Qxd5 {[%emt 0:00:17]} Bxd5 {[%emt 0:00:02]} 14. O-O {[%emt 0:02:22]} O-O-O {[%emt 0:01:17]} 15. Bb5 {[%emt 0:12:26]} Bxf3 {[%emt 0:02:27]} 16. gxf3 {[%emt 0:00:05]} Nd4 {[%emt 0:00:06]} 17. Bxd4 {[%emt 0:00:12]} Rxd4 {[%emt 0:00:04]} 18. Bd3 {[%emt 0:02:24]} Rhd8 {[%emt 0:04:22]} 19. Rfe1 {[%emt 0:01:53]} R8d5 {[%emt 0:00:28]} 20. a3 {[%emt 0:08:20]} Rf4 {[%emt 0:00:57]} 21. Rad1 {[%emt 0:03:30]} Kc7 {[%emt 0:02:41]} 22. Kg2 {[%emt 0:04:10]} b5 {[%emt 0:04:27]} 23. Re4 {[%emt 0:09:07]} Bg5 {[%emt 0:01:24]} 24. Rde1 {[%emt 0:04:33]} Kd6 {[%emt 0:00:41]} 25. Rh1 {[%emt 0:03:40]} Rf6 {[%emt 0:01:43]} 26. Rb4 {[%emt 0:04:33]} a6 {[%emt 0:00:38]} 27. a4 {[%emt 0:03:00]} Bd2 {[%emt 0:05:58]} 28. Rg4 {[%emt 0:02:58]} g6 {[%emt 0:01:11]} 29. Rd1 {[%emt 0:01:24]} Bf4 {[%emt 0:00:17]} 30. Kf1 {[%emt 0:03:44]} Re6 {[%emt 0:03:51]} 31. Ke2 {[%emt 0:02:13]} f5 {[%emt 0:00:55]} 32. Rxf4 {[%emt 0:07:33]} exf4+ {[%emt 0:00:12]} 33. Kf1 {[%emt 0:00:08]} bxa4 {[%emt 0:01:02]} 34. Ra1 {[%emt 0:00:25]} Rd4 {[%emt 0:00:20]} 35. Bxa6 {[%emt 0:00:50]} Kc5 {[%emt 1:10:34]} 36. Bd3 {[%emt 0:00:26]} Rb6 {[%emt 0:00:00]} 37. Ra2 {[%emt 0:01:54]} Rdb4 {[%emt 0:00:00]} 38. Kg2 {[%emt 0:03:08]} Kd5 {[%emt 0:00:00]} 39. Ra1 {[%emt 0:00:00]} Ke5 {[%emt 0:00:00]} 40. Re1+ {[%emt 0:00:00]} Kf6 {[%emt 0:00:00]} 41. Ra1 {[%emt 0:00:14]} Kg5 {[%emt 0:00:00]} 42. Kf1 {[%emt 0:00:32]} Rxb2 {[%emt 0:00:00]} 43. Rxa4 {[%emt 0:01:44]} Re6 {[%emt 0:00:00]} 44. Ra1 {[%emt 0:00:00]} Kh4 {[%emt 0:00:00]} 45. Kg2 {[%emt 0:00:00]} Reb6 {[%emt 0:00:00]} 46. Ra4 {[%emt 0:00:16]} R2b4 {[%emt 0:00:00]} 47. Ra1 {[%emt 0:00:11]} Rb1 {[%emt 0:00:00]} 48. Ra4 {[%emt 0:00:02]} Kg5 {[%emt 0:00:00]} 49. h4+ {[%emt 0:00:41]} Kxh4 {[%emt 0:00:00]} 50. Rxf4+ {[%emt 0:02:20]} Kg5 51. Ra4 {[%emt 0:00:00]} Rd1 {[%emt 0:00:00]} 52. f4+ {[%emt 0:00:00]} Kf6 {[%emt 0:00:00]} 53. Ra5 {[%emt 0:00:00]} h5 {[%emt 0:00:00]} 54. Rc5 {[%emt 0:00:03]} Rb4 {[%emt 0:00:00]} 55. Rc6+ {[%emt 0:00:09]} Kg7 {[%emt 0:00:00]} 56. Rc7+ {[%emt 0:00:29]} Kh6 {[%emt 0:10:30]} 57. Kg3 {[%emt 0:00:54]} Rg1+ {[%emt 0:00:00]} 58. Kf3 {[%emt 0:00:32]} h4 {[%emt 0:00:00]} 59. Rc8 {[%emt 0:00:24]} Rb7 {[%emt 0:00:00]} 60. Bc4 {[%emt 0:01:18]} h3 {[%emt 0:00:00]} 61. Bd5 {[%emt 0:00:06]} h2 {[%emt 0:00:00]} 62. Ke2 {[%emt 0:00:10]} h1=Q {[%emt 0:00:00]} 63. Bxh1 {[%emt 0:00:09]} Rxh1 {[%emt 0:00:00]} 64. c4 {[%emt 0:00:05]} Kg7 {[%emt 0:00:00]} 65. c5 {[%emt 0:00:08]} Kf7 {[%emt 0:00:00]} 66. c6 {[%emt 0:00:21]} Rb6 {[%emt 0:00:00]} 67. c7 {[%emt 0:00:10]} Rc6 {[%emt 0:00:00]} 68. Kf3 {[%emt 0:01:01]} Rhc1 {[%emt 0:00:00]} 69. Rh8 {[%emt 0:00:08]} Rxc7 {[%emt 0:00:00]} 70. Ra8 {[%emt 0:00:18]} R1c3+ {[%emt 0:00:00]} 71. Kg2 {[%emt 0:00:06]} R7c4 {[%emt 0:00:00]} 72. Ra7+ {[%emt 0:00:06]} Kf6 {[%emt 0:00:00]} 73. Ra6+ {[%emt 0:00:06]} Kg7 {[%emt 0:00:00]} 74. Ra7+ {[%emt 0:00:09]} Kh6 {[%emt 0:09:00]} 75. Ra8 {[%emt 0:00:14]} Rxf4 {[%emt 0:00:00]} 76. Rh8+ {[%emt 0:00:22]} Kg5 {[%emt 0:00:00]} 77. Rh1 {[%emt 0:00:20]} Rcf3 {[%emt 0:00:00]} 78. Rf1 {[%emt 0:00:09]} Rxf2+ {[%emt 0:00:00]} 79. Rxf2 {[%emt 0:00:04]} Rxf2+ {[%emt 0:00:00]} 80. Kxf2 {[%emt 0:00:03]} Kf4 {[%emt 0:00:00]} 81. Kg2 {[%emt 0:00:07]} g5 {[%emt 0:00:00]} 82. Kf2 {[%emt 0:00:13]} g4 {[%emt 0:00:00]} 83. Kg2 {[%emt 0:00:08]} g3 {[%emt 0:00:00]} 84. Kg1 {[%emt 0:00:02]} Kf3 {[%emt 0:00:00]} 85. Kf1 {[%emt 0:00:07]} g2+ {[%emt 0:00:00]} 86. Kg1 {[%emt 0:00:02]} f4 {[%emt 0:00:00]} 87. Kh2 {[%emt 0:00:04]} Kf2 {[%emt 0:00:00]} 88. Kh3 {[%emt 0:00:07]} g1=Q {[%emt 0:00:00]} 89. Kh4 {[%emt 0:00:02]} Ke3 {[%emt 0:00:00]} 90. Kh5 {[%emt 0:00:04]} f3 {[%emt 0:00:00]} 91. Kh6 {[%emt 0:00:13]} Kf4 {[%emt 0:00:00]} 92. Kh7 {[%emt 0:00:06]} Kf5 {[%emt 0:00:00]} 93. Kh8 {[%emt 0:00:07]} f2 {[%emt 0:09:30]} 94. Kh7 {[%emt 0:00:07]} Kf6 {[%emt 0:00:00]} 95. Kh8 {[%emt 0:00:18]} Qg7# {[%emt 0:01:00]} 0-1